fUSD/lending_fUSD_20250720
["ID","MTS","AMOUNT","RATE_DAILY","PERIOD"]
[373390305,1752983447783,-500.0,0.00019178,2]
[373390307,1752983447792,-1144.05,0.00019178,2]
[373390309,1752983447803,-480.0,0.00019178,2]
[373390311,1752983447813,-480.0,0.00019178,2]
[373390313,1752983447823,-480.0,0.00019178,2]
[373390315,1752983447833,-150.0,0.00019178,2]
[373390317,1752983447843,-2201.2,0.00019178,2]
[373390319,1752983447853,-698.78,0.00019178,2]
[373390321,1752983447863,-150.0,0.00019178,2]
[373390323,1752983447874,-801.49,0.00019178,2]
[373390325,1752983447883,-480.0,0.00019178,2]
[373390327,1752983447893,-808.57,0.00019178,2]
[373390329,1752983447902,-735.6,0.00019178,2]
[373390331,1752983447912,-150.0,0.00019178,2]
[373390333,1752983447926,-480.0,0.00019178,2]
[373390335,1752983447935,-1015.45,0.00019178,2]
[373390337,1752983447945,-151.0,0.00019178,2]
[373390339,1752983447954,-480.0,0.00019178,2]
[373390341,1752983447964,-480.0,0.00019178,2]
[373390343,1752983447975,-687.01,0.00019178,2]
[373390345,1752983447985,-480.0,0.00019178,2]
[373390347,1752983447996,-744.84,0.00019178,2]
[373390350,1752983448007,-1419.47,0.00019178,2]
[373390352,1752983448016,-508.49454006,0.00019178,2]
[373390354,1752983448026,-500.0,0.00019178,2]
[373390356,1752983448035,-1347.49,0.00019178,2]
[373390358,1752983448045,-558.96,0.00019178,2]
[373390360,1752983448055,-480.0,0.00019178,2]
[373390362,1752983448066,-480.0,0.00019178,2]
[373390364,1752983448076,-500.0,0.00019178,2]
[373390366,1752983448086,-1138.92,0.00019178,2]
[373390368,1752983448096,-500.0,0.00019178,2]
[373390370,1752983448105,-150.0,0.00019178,2]
[373390372,1752983448115,-480.0,0.00019178,2]
[373390374,1752983448124,-767.14,0.00019178,2]
[373390376,1752983448134,-150.0,0.00019178,2]
[373390378,1752983448143,-150.0,0.00019178,2]
[373390380,1752983448153,-480.0,0.00019178,2]
[373390382,1752983448164,-2980.46,0.00019178,2]
[373390384,1752983448174,-500.0,0.00019178,2]
[373390386,1752983448183,-480.0,0.00019178,2]
[373390388,1752983448194,-231.12791231,0.00019178,2]
[373390390,1752983448203,-480.0,0.00019178,2]
[373390392,1752983448213,-507.64448519,0.00019178,2]
[373390394,1752983448222,-2554.58,0.00019178,2]
[373390396,1752983448233,-480.0,0.00019178,2]
[373390398,1752983448243,-5450.5,0.00019178,2]
[373390400,1752983448253,-1452.34,0.00019178,2]
[373390402,1752983448263,-480.0,0.00019178,2]
[373390404,1752983448272,-480.0,0.00019178,2]
[373390406,1752983448281,-963.43,0.00019178,2]
[373390408,1752983448291,-480.0,0.00019178,2]
[373390410,1752983448301,-480.0,0.00019178,2]
[373390412,1752983448311,-560.16,0.00019178,2]
[373390414,1752983448321,-522.13,0.00019178,2]
[373390416,1752983448332,-871.9,0.00019178,2]
[373390418,1752983448341,-151.682884,0.00019178,2]
[373390420,1752983448352,-5052.22,0.00019178,2]
[373390422,1752983448362,-480.0,0.00019178,2]
[373390424,1752983448372,-480.0,0.00019178,2]
[373390427,1752983448382,-480.0,0.00019178,2]
[373390429,1752983448392,-488.25735215,0.00019178,2]
[373390431,1752983448401,-151.0,0.00019178,2]
[373390433,1752983448411,-3565.47,0.00019178,2]
[373390435,1752983448422,-754.49,0.00019178,2]
[373390437,1752983448432,-2105.48,0.00019178,2]
[373390439,1752983448441,-480.0,0.00019178,2]
[373390441,1752983448451,-480.0,0.00019178,2]
[373390443,1752983448461,-151.0,0.00019178,2]
[373390445,1752983448471,-1124.66,0.00019178,2]
[373390447,1752983448480,-151.0,0.00019178,2]
[373390449,1752983448490,-151.0,0.00019178,2]
[373390451,1752983448500,-1024.27,0.00019178,2]
[373390453,1752983448510,-151.0,0.00019178,2]
[373390455,1752983448520,-480.0,0.00019178,2]
[373390457,1752983448529,-202.385778,0.00019178,2]
[373390459,1752983448539,-1090.09,0.00019178,2]
[373390461,1752983448549,-480.0,0.00019178,2]
[373390463,1752983448559,-480.0,0.00019178,2]
[373390465,1752983448569,-480.0,0.00019178,2]
[373390467,1752983448579,-480.0,0.00019178,2]
[373390469,1752983448588,-480.0,0.00019178,2]
[373390471,1752983448598,-480.0,0.00019178,2]
[373390473,1752983448607,-1611.77,0.00019178,2]
[373390475,1752983448617,-962.24,0.00019178,2]
[373390476,1752983448627,-503.22991199,0.00019178,2]
[373390477,1752983448636,-981.4,0.00019178,2]
[373390478,1752983448645,-480.0,0.00019178,2]
[373390479,1752983448655,-420.0,0.00019178,2]
[373390480,1752983448664,-151.0,0.00019178,2]
[373390481,1752983448674,-151.0,0.00019178,2]
[373390482,1752983448684,-574.47,0.00019178,2]
[373390483,1752983448694,-480.0,0.00019178,2]
[373390484,1752983448703,-1356.81,0.00019178,2]
[373390486,1752983448714,-480.0,0.00019178,2]
[373390489,1752983448724,-151.0,0.00019178,2]
[373390491,1752983448734,-151.0,0.00019178,2]
[373390493,1752983448744,-151.0,0.00019178,2]
[373390495,1752983448753,-151.0,0.00019178,2]
[373390497,1752983448763,-480.0,0.00019178,2]
[373390499,1752983448773,-480.0,0.00019178,2]
[373390501,1752983448783,-480.0,0.00019178,2]
[373390503,1752983448794,-546.15,0.00019178,2]
[373390505,1752983448804,-3984.36,0.00019178,2]
[373390507,1752983448813,-480.0,0.00019178,2]
[373390509,1752983448823,-480.0,0.00019178,2]
[373390511,1752983448833,-480.0,0.00019178,2]
[373390513,1752983448842,-480.0,0.00019178,2]
[373390515,1752983448852,-480.0,0.00019178,2]
[373390517,1752983448861,-6148.42,0.00019178,2]
[373390519,1752983448871,-926.3,0.00019178,2]
[373390521,1752983448880,-1367.25,0.00019178,2]
[373390523,1752983448891,-480.0,0.00019178,2]
[373390525,1752983448900,-2405.36,0.00019178,2]
[373390527,1752983448910,-737.19,0.00019178,2]
[373390529,1752983448923,-480.0,0.00019178,2]
[373390531,1752983448933,-478.86714438,0.00019178,2]
[373390533,1752983448943,-719.9,0.00019178,2]
[373390535,1752983448953,-1466.72,0.00019178,2]
[373390537,1752983448963,-480.0,0.00019178,2]
[373390539,1752983448973,-480.0,0.00019178,2]
[373390541,1752983448984,-480.0,0.00019178,2]
[373390543,1752983448994,-480.0,0.00019178,2]
[373390545,1752983449006,-2248.06,0.00019178,2]
[373390547,1752983449017,-480.0,0.00019178,2]
[373390549,1752983449026,-2361.41,0.00019178,2]
[373390551,1752983449036,-1192.49,0.00019178,2]
[373390554,1752983449046,-588.73,0.00019178,2]
[373390556,1752983449056,-634.94,0.00019178,2]
[373390558,1752983449066,-480.0,0.00019178,2]
[373390560,1752983449075,-480.0,0.00019178,2]
[373390562,1752983449086,-4793.06,0.00019178,2]
[373390564,1752983449097,-480.0,0.00019178,2]
[373390566,1752983449106,-9577.74,0.00019178,2]
[373390568,1752983449116,-360.0,0.00019178,2]
[373390570,1752983449126,-284.54277574,0.00019178,2]
[373390572,1752983449135,-480.0,0.00019178,2]
[373390574,1752983449145,-480.0,0.00019178,2]
[373390576,1752983449155,-500.0,0.00019178,2]
[373390578,1752983449166,-518.42,0.00019178,2]
[373390581,1752983449180,-480.0,0.00019178,2]
[373390583,1752983449191,-1250.81,0.00019178,2]
[373390585,1752983449201,-1405.91,0.00019178,2]
[373390587,1752983449211,-507.30958229,0.00019178,2]
[373390588,1752983449222,-480.0,0.00019178,2]
[373390615,1752983449448,-480.0,0.00019178,2]
[373390617,1752983449483,-480.0,0.00019178,2]
[373390619,1752983449492,-1082.66,0.00019178,2]
[373390621,1752983449502,-480.0,0.00019178,2]
[373390623,1752983449511,-509.09514894,0.00019178,2]
[373390625,1752983449520,-786.35,0.00019178,2]
[373390627,1752983449530,-480.0,0.00019178,2]
[373390629,1752983449540,-480.0,0.00019178,2]
[373390631,1752983449549,-1036.03,0.00019178,2]
[373390633,1752983449559,-448.7150745,0.00019178,2]
[373390635,1752983449568,-526.0,0.00019178,2]
[373390637,1752983449577,-504.93783967,0.00019178,2]
[373390639,1752983449587,-380.0,0.00019178,2]
[373390641,1752983449596,-514.43,0.00019178,2]
[373390643,1752983449606,-1678.83,0.00019178,2]
[373390645,1752983449615,-505.64812408,0.00019178,2]
[373390647,1752983449625,-480.0,0.00019178,2]
[373390649,1752983449634,-1121.35,0.00019178,2]
[373390651,1752983449643,-831.0,0.00019178,2]
[373390653,1752983449653,-500.0,0.00019178,2]
[373390655,1752983449662,-424.86804978,0.00019178,2]
[373390657,1752983449674,-480.0,0.00019178,2]
[373390659,1752983449685,-480.0,0.00019178,2]
[373390661,1752983449695,-773.36,0.00019178,2]
[373390663,1752983449704,-360.0,0.00019178,2]
[373390665,1752983449714,-718.25,0.00019178,2]
[373390667,1752983449724,-805.94,0.00019178,2]
[373390669,1752983449733,-480.0,0.00019178,2]
[373390671,1752983449743,-763.26,0.00019178,2]
[373390673,1752983449752,-601.17,0.00019178,2]
[373390675,1752983449762,-665.29,0.00019178,2]
[373390677,1752983449772,-480.0,0.00019178,2]
[373390679,1752983449781,-480.0,0.00019178,2]
[373390681,1752983449791,-1187.59,0.00019178,2]
[373390683,1752983449801,-480.0,0.00019178,2]
[373390685,1752983449810,-500.0,0.00019178,2]
[373390687,1752983449820,-480.0,0.00019178,2]
[373390689,1752983449829,-3301.21,0.00019178,2]
[373390691,1752983449839,-480.0,0.00019178,2]
[373390693,1752983449849,-480.0,0.00019178,2]
[373390695,1752983449858,-500.0,0.00019178,2]
[373390697,1752983449868,-480.0,0.00019178,2]
[373390699,1752983449877,-480.0,0.00019178,2]
[373390701,1752983449887,-500.0,0.00019178,2]
[373390703,1752983449896,-3695.88,0.00019178,2]
[373390705,1752983449906,-270.10044685,0.00019178,2]
[373390707,1752983449918,-1149.0,0.00019178,2]
[373390709,1752983449932,-480.0,0.00019178,2]
[373390711,1752983449941,-618.08196819,0.00019178,2]
[373390713,1752983449952,-480.0,0.00019178,2]
[373390715,1752983449962,-821.65,0.00019178,2]
[373390717,1752983449972,-1685.67,0.00019178,2]
[373390719,1752983449982,-4076.0,0.00019178,2]
[373390721,1752983449991,-670.23,0.00019178,2]
[373390723,1752983450001,-1374.67,0.00019178,2]
[373390725,1752983450012,-480.0,0.00019178,2]
[373390727,1752983450022,-731.19,0.00019178,2]
[373390729,1752983450031,-453.49760057,0.00019178,2]
[373390731,1752983450041,-151.0,0.00019178,2]
[373390733,1752983450050,-346.23297511,0.00019178,2]
[373390735,1752983450061,-480.0,0.00019178,2]
[373390737,1752983450070,-151.0,0.00019178,2]
[373390739,1752983450080,-1796.15,0.00019178,2]
[373390741,1752983450089,-1193.89,0.00019178,2]
[373390743,1752983450099,-151.0,0.00019178,2]
[373390745,1752983450108,-480.0,0.00019178,2]
[373390747,1752983450117,-151.0,0.00019178,2]
[373390749,1752983450126,-1210.0,0.00019178,2]
[373390751,1752983450136,-279.98480388,0.00019178,2]
[373390753,1752983450145,-151.0,0.00019178,2]
[373390755,1752983450154,-1210.0,0.00019178,2]
[373390757,1752983450163,-271.846477,0.00019178,2]
[373390759,1752983450176,-850.76,0.00019178,2]
[373390761,1752983450185,-1151.96,0.00019178,2]
[373390763,1752983450195,-1210.0,0.00019178,2]
[373390765,1752983450205,-480.0,0.00019178,2]
[373390767,1752983450214,-480.0,0.00019178,2]
[373390769,1752983450223,-1210.0,0.00019178,2]
[373390771,1752983450234,-1210.0,0.00019178,2]
[373390773,1752983450244,-335.83844543,0.00019178,2]
[373390775,1752983450254,-151.0,0.00019178,2]
[373390777,1752983450263,-151.0,0.00019178,2]
[373390779,1752983450274,-151.0,0.00019178,2]
[373390781,1752983450283,-1267.3,0.00019178,2]
[373390783,1752983450292,-151.0,0.00019178,2]
[373390785,1752983450302,-151.0,0.00019178,2]
[373390787,1752983450311,-480.0,0.00019178,2]
[373390789,1752983450321,-158.670015,0.00019178,2]
[373390791,1752983450330,-1053.53,0.00019178,2]
[373390793,1752983450340,-154.0,0.00019178,2]
[373390795,1752983450349,-362.13304619,0.00019178,2]
[373390797,1752983450358,-154.0,0.00019178,2]
[373390799,1752983450367,-154.0,0.00019178,2]
[373390801,1752983450376,-536.82,0.00019178,2]
[373390803,1752983450386,-154.0,0.00019178,2]
[373390805,1752983450396,-214.0,0.00019178,2]
[373390807,1752983450406,-741.52,0.00019178,2]
[373390808,1752983450415,-480.0,0.00019178,2]
[373390810,1752983450426,-1710.57,0.00019178,2]
[373390812,1752983450435,-504.86586057,0.00019178,2]
[373390814,1752983450445,-151.0,0.00019178,2]
[373390816,1752983450454,-161.2736859,0.00019178,2]
[373390818,1752983450464,-151.0,0.00019178,2]
[373390820,1752983450474,-283.27,0.00019178,2]
[373390822,1752983450484,-1710.6259237,0.00019178,2]
[373390824,1752983450494,-24629.36862034,0.00019178,2]
[373390826,1752983450503,-322.0,0.00019178,3]
[373390828,1752983450512,-168.0,0.00019183,2]
[373390830,1752983450521,-2665.17445914,0.00019188,2]
[373390832,1752983450533,-159.94938587,0.00019197,2]
[373390834,1752983450544,-1680.0,0.0001923,2]
[373390836,1752983450554,-392.92115914,0.00019245,2]
[373390838,1752983450563,-157.61,0.00019245,2]
[373390840,1752983450572,-159.94938587,0.00019261,2]
[373390842,1752983450582,-210.86573235,0.00019267,2]
[373390844,1752983450591,-160.0,0.00019267,2]
[373390846,1752983450601,-476.8747822,0.00019267,2]
[373390848,1752983450610,-839.31074571,0.00019267,2]
[373390850,1752983450619,-513.40344777,0.00019273,2]
[373390852,1752983450630,-400.22356719,0.00019273,2]
[373390854,1752983450639,-498.26015357,0.00019273,2]
[373390856,1752983450649,-503.70451398,0.00019273,2]
[373390858,1752983450658,-151.0,0.00019273,2]
[373390860,1752983450670,-275.775951,0.00019273,2]
[373390862,1752983450680,-151.0,0.00019273,2]
[373390864,1752983450692,-240.489455,0.00019274,2]
[373390866,1752983450702,-168.0,0.00019275,2]
[373390868,1752983450711,-2509.92647777,0.00019283,2]
[373390870,1752983450720,-251.46969051,0.00019285,2]
[373390872,1752983450729,-666.0,0.00019286,2]
[373390874,1752983450739,-1005.2587,0.00019286,2]
[373390876,1752983450748,-151.0,0.00019286,2]
[373390877,1752983450757,-151.0,0.00019286,2]
[373390878,1752983450766,-759.79,0.00019286,2]
[373390879,1752983450775,-759.79,0.00019286,2]
[373390880,1752983450784,-151.0,0.00019286,2]
[373390881,1752983450794,-151.0,0.00019286,2]
[373390882,1752983450803,-1037.680897,0.00019286,2]
[373390883,1752983450812,-274.856324,0.00019286,2]
[373390884,1752983450821,-620.49,0.00019286,2]
[373390885,1752983450830,-620.49,0.00019286,2]
[373390886,1752983450840,-770.66,0.00019286,2]
[373390887,1752983450849,-342.664775,0.00019286,2]
[373390889,1752983450858,-342.664775,0.00019286,2]
[373390890,1752983450867,-500.0,0.00019286,2]
[373390892,1752983450877,-500.0,0.00019286,2]
[373390894,1752983450887,-162.950328,0.00019286,2]
[373390896,1752983450896,-162.950328,0.00019286,2]
[373390898,1752983450906,-151.0,0.00019286,2]
[373390900,1752983450915,-300.0,0.00019286,2]
[373390902,1752983450930,-151.0,0.00019286,2]
[373390904,1752983450939,-172.451066,0.00019286,2]
[373390907,1752983450950,-150.0,0.00019286,2]
[373390908,1752983450959,-167588.52992045,0.00019286,2]
[373390911,1752983450969,-405.909386,0.00019287,2]
[373390912,1752983450978,-347.586308,0.00019287,2]
[373390915,1752983450989,-524.535421,0.00019287,2]
[373390917,1752983450999,-234.21014286,0.00019287,2]
[373390919,1752983451008,-500.0,0.00019287,2]
[373390921,1752983451018,-259.15,0.00019287,2]
[373390923,1752983451027,-480.0,0.00019287,2]
[373390924,1752983451036,-480.0,0.00019287,2]
[373390926,1752983451046,-500.0,0.00019287,2]
[373390928,1752983451055,-480.0,0.00019287,2]
[373390930,1752983451065,-480.0,0.00019287,2]
[373390932,1752983451074,-372.75155423,0.00019287,2]
[373390934,1752983451084,-151.0,0.00019287,2]
[373390937,1752983451094,-151.0,0.00019287,2]
[373390939,1752983451104,-262.35893,0.00019287,2]
[373390941,1752983451115,-480.0,0.00019287,2]
[373390943,1752983451124,-480.0,0.00019287,2]
[373390945,1752983451135,-480.0,0.00019287,2]
[373390947,1752983451144,-218.15090654,0.00019287,2]
[373390948,1752983451153,-480.0,0.00019287,2]
[373390950,1752983451162,-480.0,0.00019287,2]
[373390952,1752983451173,-480.0,0.00019287,2]
[373390954,1752983451182,-480.0,0.00019287,2]
[373390955,1752983451191,-480.0,0.00019287,2]
[373390957,1752983451200,-480.0,0.00019287,2]
[373390959,1752983451212,-309.53662301,0.00019287,2]
[373390961,1752983451222,-480.0,0.00019287,2]
[373390963,1752983451231,-480.0,0.00019287,2]
[373390965,1752983451241,-480.0,0.00019287,2]
[373390967,1752983451250,-480.0,0.00019287,2]
[373390969,1752983451260,-480.0,0.00019287,2]
[373390971,1752983451270,-480.0,0.00019287,2]
[373390973,1752983451279,-480.0,0.00019287,2]
[373390975,1752983451288,-480.0,0.00019287,2]
[373390977,1752983451298,-480.0,0.00019287,2]
[373390979,1752983451308,-151.0,0.00019287,2]
[373390981,1752983451317,-151.0,0.00019287,2]
[373390983,1752983451326,-480.0,0.00019287,2]
[373390984,1752983451335,-480.0,0.00019287,2]
[373390986,1752983451344,-480.0,0.00019287,2]
[373390988,1752983451353,-480.0,0.00019287,2]
[373390990,1752983451363,-480.0,0.00019287,2]
[373390992,1752983451372,-488.57,0.00019287,2]
[373390994,1752983451382,-526.79,0.00019287,2]
[373390996,1752983451391,-195.304007,0.00019287,2]
[373390998,1752983451401,-500.0,0.00019287,2]
[373391000,1752983451410,-480.0,0.00019287,2]
[373391002,1752983451421,-480.0,0.00019287,2]
[373391004,1752983451430,-388.69368482,0.00019287,2]
[373391006,1752983451440,-480.0,0.00019287,2]
[373391008,1752983451449,-480.0,0.00019287,2]
[373391010,1752983451458,-652.55,0.00019287,2]
[373391012,1752983451467,-480.0,0.00019287,2]
[373391014,1752983451476,-402.06571168,0.00019287,2]
[373391016,1752983451486,-480.0,0.00019287,2]
[373391018,1752983451498,-151.0,0.00019287,2]
[373391021,1752983451514,-480.0,0.00019287,2]
[373391023,1752983451528,-480.0,0.00019287,2]
[373391025,1752983451538,-480.0,0.00019287,2]
[373391028,1752983451551,-504.9538755,0.00019287,2]
[373391030,1752983451565,-480.0,0.00019287,2]
[373391032,1752983451577,-496.94,0.00019287,2]
[373391035,1752983451590,-480.0,0.00019287,2]
[373391037,1752983451605,-480.0,0.00019287,2]
[373391039,1752983451617,-480.0,0.00019287,2]
[373391042,1752983451629,-480.0,0.00019287,2]
[373391044,1752983451640,-480.0,0.00019287,2]
[373391046,1752983451653,-800.28,0.00019287,2]
[373391048,1752983451666,-480.0,0.00019287,2]
[373391051,1752983451681,-500.0,0.00019287,2]
[373391053,1752983451694,-678.96,0.00019287,2]
[373391056,1752983451708,-500.0,0.00019287,2]
[373391058,1752983451722,-480.0,0.00019287,2]
[373391060,1752983451733,-480.0,0.00019287,2]
[373391063,1752983451748,-480.0,0.00019287,2]
[373391065,1752983451762,-168.95,0.00019287,2]
[373391067,1752983451775,-621.54,0.00019287,2]
[373391070,1752983451789,-480.0,0.00019287,2]
[373391072,1752983451801,-480.0,0.00019287,2]
[373391075,1752983451815,-480.0,0.00019287,2]
[373391077,1752983451829,-480.0,0.00019287,2]
[373391080,1752983451843,-480.0,0.00019287,2]
[373391082,1752983451855,-480.0,0.00019287,2]
[373391084,1752983451867,-596.67,0.00019287,2]
[373391086,1752983451878,-602.0,0.00019287,2]
[373391088,1752983451889,-480.0,0.00019287,2]
[373391091,1752983451902,-480.0,0.00019287,2]
[373391093,1752983451918,-500.41,0.00019287,2]
[373391095,1752983451936,-570.86,0.00019287,2]
[373391097,1752983451946,-480.0,0.00019287,2]
[373391100,1752983451957,-3264.72,0.00019287,2]
[373391102,1752983451971,-480.0,0.00019287,2]
[373391104,1752983451983,-480.0,0.00019287,2]
[373391106,1752983451994,-480.0,0.00019287,2]
[373391109,1752983452006,-480.0,0.00019287,2]
[373391111,1752983452018,-838.65,0.00019287,2]
[373391113,1752983452029,-480.0,0.00019287,2]
[373391115,1752983452041,-709.89,0.00019287,2]
[373391118,1752983452052,-713.6,0.00019287,2]
[373391120,1752983452064,-507.66626857,0.00019287,2]
[373391122,1752983452076,-231.83504,0.00019287,2]
[373391124,1752983452088,-480.0,0.00019287,2]
[373391126,1752983452100,-151.0,0.00019287,2]
[373391129,1752983452112,-480.0,0.00019287,2]
[373391131,1752983452124,-480.0,0.00019287,2]
[373391133,1752983452136,-480.0,0.00019287,2]
[373391135,1752983452148,-480.0,0.00019287,2]
[373391138,1752983452160,-209.69524978,0.00019287,2]
[373391140,1752983452174,-894.47,0.00019287,2]
[373391142,1752983452186,-691.65,0.00019287,2]
[373391144,1752983452197,-480.0,0.00019287,2]
[373391146,1752983452209,-480.0,0.00019287,2]
[373391149,1752983452221,-514.91932967,0.00019287,2]
[373391151,1752983452232,-480.0,0.00019287,2]
[373391153,1752983452244,-480.0,0.00019287,2]
[373391155,1752983452255,-480.0,0.00019287,2]
[373391157,1752983452266,-1037.680889,0.00019287,2]
[373391159,1752983452278,-480.0,0.00019287,2]
[373391161,1752983452289,-480.0,0.00019287,2]
[373391164,1752983452302,-480.0,0.00019287,2]
[373391166,1752983452314,-495.52181908,0.00019287,2]
[373391168,1752983452325,-511.78,0.00019287,2]
[373391170,1752983452337,-480.0,0.00019287,2]
[373391172,1752983452348,-480.0,0.00019287,2]
[373391174,1752983452360,-480.0,0.00019287,2]
[373391176,1752983452372,-480.0,0.00019287,2]
[373391179,1752983452384,-480.0,0.00019287,2]
[373391181,1752983452397,-480.0,0.00019287,2]
[373391183,1752983452408,-481.61,0.00019287,2]
[373391185,1752983452422,-480.0,0.00019287,2]
[373391188,1752983452434,-1456.33,0.00019287,2]
[373391190,1752983452446,-480.0,0.00019287,2]
[373391192,1752983452461,-577.39,0.00019287,2]
[373391194,1752983452473,-480.0,0.00019287,2]
[373391197,1752983452484,-569.49,0.00019287,2]
[373391199,1752983452496,-480.0,0.00019287,2]
[373391201,1752983452508,-480.0,0.00019287,2]
[373391203,1752983452519,-566.69499106,0.00019287,2]
[373391205,1752983452530,-239.71049334,0.00019287,2]
[373391207,1752983452542,-480.0,0.00019287,2]
[373391210,1752983452554,-480.0,0.00019287,2]
[373391212,1752983452566,-480.0,0.00019287,2]
[373391214,1752983452578,-480.0,0.00019287,2]
[373391216,1752983452590,-480.0,0.00019287,2]
[373391219,1752983452602,-495.68,0.00019287,2]
[373391221,1752983452614,-253.24502602,0.00019287,2]
[373391223,1752983452625,-480.0,0.00019287,2]
[373391225,1752983452638,-480.0,0.00019287,2]
[373391227,1752983452650,-480.0,0.00019287,2]
[373391229,1752983452661,-480.0,0.00019287,2]
[373391232,1752983452675,-480.0,0.00019287,2]
[373391234,1752983452687,-480.0,0.00019287,2]
[373391236,1752983452699,-480.0,0.00019287,2]
[373391238,1752983452711,-480.0,0.00019287,2]
[373391240,1752983452722,-1715.52,0.00019287,2]
[373391243,1752983452734,-480.0,0.00019287,2]
[373391245,1752983452745,-877.24,0.00019287,2]
[373391247,1752983452757,-480.0,0.00019287,2]
[373391249,1752983452769,-480.0,0.00019287,2]
[373391251,1752983452781,-480.0,0.00019287,2]
[373391252,1752983452792,-304.13435772,0.00019287,2]
[373391253,1752983452804,-480.0,0.00019287,2]
[373391254,1752983452817,-480.0,0.00019287,2]
[373391255,1752983452829,-480.0,0.00019287,2]
[373391256,1752983452840,-480.0,0.00019287,2]
[373391257,1752983452852,-480.0,0.00019287,2]
[373391258,1752983452863,-749.25,0.00019287,2]
[373391259,1752983452875,-480.0,0.00019287,2]
[373391260,1752983452887,-181.22327717,0.00019287,2]
[373391262,1752983452898,-480.0,0.00019287,2]
[373391264,1752983452910,-480.0,0.00019287,2]
[373391267,1752983452923,-480.0,0.00019287,2]
[373391269,1752983452935,-670.57,0.00019287,2]
[373391271,1752983452946,-769.19,0.00019287,2]
[373391273,1752983452958,-541.28,0.00019287,2]
[373391276,1752983452970,-634.92,0.00019287,2]
[373391278,1752983452982,-480.0,0.00019287,2]
[373391280,1752983452993,-480.0,0.00019287,2]
[373391282,1752983453005,-480.0,0.00019287,2]
[373391284,1752983453016,-1354.22,0.00019287,2]
[373391286,1752983453028,-1092.47,0.00019287,2]
[373391289,1752983453039,-480.0,0.00019287,2]
[373391291,1752983453051,-480.0,0.00019287,2]
[373391293,1752983453063,-480.0,0.00019287,2]
[373391296,1752983453074,-480.0,0.00019287,2]
[373391298,1752983453086,-480.0,0.00019287,2]
[373391300,1752983453098,-480.0,0.00019287,2]
[373391302,1752983453109,-480.0,0.00019287,2]
[373391304,1752983453121,-717.34,0.00019287,2]
[373391306,1752983453132,-599.74,0.00019287,2]
[373391309,1752983453145,-480.0,0.00019287,2]
[373391311,1752983453156,-840.34,0.00019287,2]
[373391313,1752983453167,-480.0,0.00019287,2]
[373391315,1752983453180,-2426.64,0.00019287,2]
[373391318,1752983453191,-480.0,0.00019287,2]
[373391320,1752983453203,-616.16,0.00019287,2]
[373391322,1752983453214,-722.53,0.00019287,2]
[373391324,1752983453225,-598.54,0.00019287,2]
[373391327,1752983453237,-480.0,0.00019287,2]
[373391329,1752983453248,-480.0,0.00019287,2]
[373391331,1752983453260,-480.0,0.00019287,2]